Cogmind - Beta 16.1 @@@ ROGUE MODE // 2026.02.09 @ 22:22:21 Player: Redbrew Result: Destroyed by H-55 Commando with Gauss Rifle Performance ------------- Evolutions (3) 1500 Regions Visited (5) 1000 Robots Destroyed (58) 290 Value Destroyed (1919) 1919 Prototype IDs (3) 60 Alien Tech Used (0) 0 Bonus (35) 35 TOTAL SCORE: 4804 Bonus ------- Follower Combat Kills 35 Cogmind --------- Core Integrity 0/700 Matter 62/300 Energy 99/100 System Corruption 11% Temperature Cool (0) Movement Core (50) Location -7/Factory Parts ------- > --- POWER (1) -------- (None) > --- PROPULSION (4) --- (None) > --- UTILITY (5) ------ (None) > --- WEAPON (3) ------- (None) > --- INVENTORY (5) ---- Aluminum Leg Armored Huge Wheel Recalibrator Improved Datajack Peak State ------------ > --- POWER ------------ Enhanced Nuclear Core > --- PROPULSION ------- Aluminum Leg Aluminum Leg Aluminum Leg Aluminum Leg > --- UTILITY ---------- Medium Storage Unit Compact Battery Medium Matter Pod Advanced Weight Redist. System Recoil Stabilizer > --- WEAPON ----------- Flak Gun Mini Assault Cannon Rocket Launcher > --- INVENTORY -------- Enhanced Nuclear Core Aluminum Leg Aluminum Leg Armored Huge Wheel Large Storage Unit Recalibrator Flak Gun Flak Gun Improved Datajack [Rating: 34] Favorites ----------- Power Ion Engine Engine Ion Engine Power Core Enhanced Nuclear Core Propulsion Aluminum Leg Leg Aluminum Leg Utility Medium Storage Unit Device Cooling System Storage Medium Storage Unit Protection Light Armor Plating Weapon Improved Light Cannon Energy Gun Medium Laser Ballistic Gun Flak Gun Ballistic Cannon Improved Light Cannon Launcher Rocket Launcher Build | -11 -10 -9 -9 -8 -7 ------- Run | Yrd Mat Mat Min Mat Fac Slots Evolved 6 | . . 2 . 2 2 Power . | . . . . . . Propulsion 2 | . . 1 . 1 . Utility 3 | . . 1 . 1 1 Weapon 1 | . . . . . 1 Parts Attached 49 | 8 4 6 9 13 9 Power 8 | 1 1 . 2 2 2 Engine 6 | 1 1 . 2 2 . Core 2 | . . . . . 2 Reactor . | . . . . . . Propulsion 14 | 2 1 1 4 6 . Treads . | . . . . . . Leg 14 | 2 1 1 4 6 . Wheel . | . . . . . . Hover . | . . . . . . Flight . | . . . . . . Utility 12 | 2 . 3 2 2 3 Device 7 | 1 . 2 1 1 2 Storage 4 | 1 . 1 . 1 1 Processor . | . . . . . . Hackware . | . . . . . . Protection 1 | . . . 1 . . Artifact . | . . . . . . Weapon 15 | 3 2 2 1 3 4 Energy Gun 2 | 2 . . . . . Energy Cannon . | . . . . . . Ballistic Gun 8 | 1 2 . . 3 2 Ballistic Cannon 4 | . . 2 1 . 1 Launcher 1 | . . . . . 1 Special Weapon . | . . . . . . Impact Weapon . | . . . . . . Slashing Weapon . | . . . . . . Piercing Weapon . | . . . . . . Special Melee Weapon . | . . . . . . Unidentified Prototypes 3 | . . . . 1 2 Parts Lost 25 | . 1 . 4 7 13 Power 3 | . . . 1 1 1 Propulsion 10 | . 1 . 3 2 4 Utility 6 | . . . . 3 3 Weapon 6 | . . . . 1 5 Highest Loss Streak 13 | . 1 . 3 4 13 To Critical Strikes . | . . . . . . Average Backups 7 | 3 6 7 8 8 8 Power . | . . 1 . . 1 Propulsion 2 | 1 3 2 2 1 2 Utility 2 | . . 1 3 2 2 Weapon 1 | . 1 1 1 2 . Tool/Special . | . . . . . . Unused Backups 12 | . . 2 1 2 7 Power 2 | . . . . . 2 Propulsion 4 | . . 2 . . 2 Utility 4 | . . . 1 1 2 Weapon . | . . . . . . Tool/Special 2 | . . . . 1 1 Average Slot Usage (%) 96 | . 99 98 98 94 90 Engine 9 | . 14 11 10 8 4 Leg 31 | . 27 33 32 34 28 Device 17 | . 14 21 20 15 10 Storage 12 | . 14 11 11 9 21 Protection 2 | . . . 1 7 . Ballistic Gun 9 | . 23 3 . 16 13 Ballistic Cannon 10 | . . 17 21 1 . Launcher 1 | . . . . . 6 Peak Build Rating 34 | 9 9 15 17 27 34 Average Rating 17 | 5 8 14 15 23 26 On Entrance 11 | . 9 9 15 13 20 Avg Prop Armor Cover (%) . | . . . . . . Naked Turns 4 | . . . . . 4 Heaviest Build 38 | 12 13 26 26 38 37 Greatest Support 49 | 20 20 30 33 40 49 Greatest Overweight (x) 4 | . . . 2 1 4 Average Overweight (x) . | . . . . . . Largest Inventory Capacity 10 | 8 8 10 10 10 10 Average Capacity 9 | 7 8 9 10 10 9 Most Carried 10 | 5 8 9 10 10 10 Average Carried 8 | 3 6 7 8 8 8 Final Capacity 10 | 8 8 10 10 10 5 Final Carried 9 | 4 8 9 8 9 5 Class Distribution -------------------- 59% | Mutant 27% | Scavenger-Mutant 12% | Scavenger-Gunner Dominant Class ---------------- Mutant | -10/Materials Mutant | -9/Materials Mutant | -9/Mines Scavenger-Mutant | -8/Materials Scavenger-Gunner | -7/Factory Resources | -11 -10 -9 -9 -8 -7 ----------- Run | Yrd Mat Mat Min Mat Fac Matter Collected 1439 | 300 104 134 390 472 39 Remotely . | . . . . . . Salvage Created 1694 | 86 428 216 202 603 159 Parts 98 | 2 23 21 6 29 17 Haulers Intercepted 1 | . . . . . 1 Recyclers Shooed 1 | . . 1 . . . Parts Field Recycled . | . . . . . . Retrieved Matter . | . . . . . . Parts Self-Destructed . | . . . . . . Prevented . | . . . . . . Parts Restored . | . . . . . . Kills | -11 -10 -9 -9 -8 -7 ------- Run | Yrd Mat Mat Min Mat Fac Combat Hostiles Destroyed 47 | . 10 8 8 14 7 Guns 23 | . 10 . . 13 . Cannons 16 | . . 8 8 . . AOE 8 | . . . . 1 7 Classes Destroyed 16 | 2 1 4 2 4 3 Worker 3 | . . . 2 . 1 Builder 1 | . . . . 1 . Tunneler 1 | 1 . . . . . Hauler 1 | . . . . . 1 Recycler 2 | 1 . . . 1 . Mechanic 1 | . . . . . 1 Operator 1 | . . 1 . . . Watcher 1 | . . 1 . . . Swarmer 8 | . . 4 . . 4 Grunt 25 | . 10 1 6 8 . Brawler 1 | . . . . 1 . Duelist 2 | . . . 2 . . Sentry 6 | . . 3 . 3 . Hunter 3 | . . . . 1 2 Programmer 1 | . . . . . 1 Heavy 1 | . . . . 1 . Best Kill Streak 6 | 2 3 4 3 5 6 Combat Bots Only 5 | . 3 4 3 5 4 Max Kills in Single Turn 4 | 1 1 1 1 2 4 Gunslinging . | . . . . . . Exploded 3 | . . . . 1 3 Melee . | . . . . . . Uniques/NPCs Destroyed . | . . . . . . Combat | -11 -10 -9 -9 -8 -7 -------- Run | Yrd Mat Mat Min Mat Fac Hostile Shots Fired 334 | . 42 31 49 73 139 Missed 74 | . 13 11 7 16 27 Hits 260 | . 29 20 42 57 112 Melee 14 | . . . 13 1 . Projectile 246 | . 29 20 29 56 112 Critical Strikes 15 | . . 2 3 5 5 Part Disruptions 1 | . . . . . 1 Damage Taken 4406 | . 359 189 755 1126 1977 Core 1119 | . 51 40 96 222 710 Absorbed by Shields . | . . . . . . Regen/Repaired (Parts) 144 | . 62 . . . 82 Core Remaining (%) 76 | 100 79 . 66 59 . Volleys Fired 158 | 9 39 20 32 43 15 Largest 3 | 2 2 2 2 2 3 Hottest 90 | 90 70 66 66 56 89 Shots Fired 299 | 18 78 40 57 83 23 Gun 204 | 18 78 8 . 83 17 Cannon 89 | . . 32 57 . . Launcher 6 | . . . . . 6 Special . | . . . . . . Kinetic 256 | . 59 40 57 83 17 Thermal 37 | 18 19 . . . . Explosive 6 | . . . . . 6 Electromagnetic . | . . . . . . Robot Hit Streak 13 | 6 10 5 13 9 9 Robot Miss Streak 9 | 1 3 4 3 6 9 Penetration Max . | . . . . . . Secondary Targets 2 | . . . . 2 . Max Gunslinging Chain 1 | . . . . 1 . Shots Hit Robots 218 | 14 50 20 37 79 18 Core Hits 201 | 3 25 13 14 102 44 Critical Kills . | . . . . . . Critical Parts Destroyed . | . . . . . . Critical Strikes 3 | 1 1 . 1 . . Burn 2 | 1 1 . . . . Blast 1 | . . . 1 . . Melee Attacks . | . . . . . . Impact . | . . . . . . Slashing . | . . . . . . Piercing . | . . . . . . Sneak Attacks . | . . . . . . Combat Hostiles . | . . . . . . Follow-up Attacks . | . . . . . . Damage Inflicted 5035 | 173 467 399 845 1367 1784 Guns 2432 | 173 467 37 . 1367 388 Cannons 1207 | . . 362 845 . . Explosions 1396 | . . . . . 1396 Melee . | . . . . . . Ramming . | . . . . . . Kinetic 3272 | . 273 399 845 1367 388 Thermal 367 | 173 194 . . . . Explosive 1396 | . . . . . 1396 Electromagnetic . | . . . . . . Impact . | . . . . . . Slashing . | . . . . . . Piercing . | . . . . . . Highest Corruption 11 | . . . . 10 11 Average Corruption 5 | . . . . 10 3 Corruption Purged . | . . . . . . Corruption Blocked . | . . . . . . Effects 11 | . . . . 5 6 Message Errors 2 | . . . . . 2 Matter Fused 3 | . . . . 2 1 Energy Discharges 1 | . . . . . 1 Data Loss (minor) 1 | . . . . 1 . Data Loss (major) 1 | . . . . 1 . Misfires 1 | . . . . . 1 Weapon Failures 2 | . . . . 1 1 Overload Shots . | . . . . . . Overflow Damage 59 | . . 5 29 . 25 Projectiles 34 | . . 5 29 . . Explosions 25 | . . . . . 25 Melee . | . . . . . . Knockbacks 18 | . . 2 16 . . Impact . | . . . . . . Kinetic 17 | . . 2 15 . . Secondary 1 | . . . 1 . . Self-Inflicted Damage 74 | . . . . . 74 Shots 3 | . . . . . 3 Rammed . | . . . . . . Targets Rammed . | . . . . . . Kicked . | . . . . . . Crushed . | . . . . . . Highest Temperature 184 | 150 184 4 6 17 18 Average Temperature 49 | 70 57 4 4 4 10 Received Heat Transfer 753 | . 198 36 186 333 . Siege Activations . | . . . . . . Martial Activations . | . . . . . . Shielding Activations . | . . . . . . Robots Disrupted . | . . . . . . Combat Hostiles . | . . . . . . Robots Corrupted . | . . . . . . Combat Hostiles . | . . . . . . Parts Fried . | . . . . . . Impact Corruptions . | . . . . . . Robots Melted . | . . . . . . Combat Hostiles . | . . . . . . Parts Melted 1 | . 1 . . . . Heat Transferred 1211 | 545 666 . . . . Parts Sabotaged . | . . . . . . Parts Stolen . | . . . . . . Parts Stripped . | . . . . . . Power Chain Reactions . | . . . . . . Alert | -11 -10 -9 -9 -8 -7 ------- Run | Yrd Mat Mat Min Mat Fac Maximum Alert Level . | . . . . . . Low Security (%) 100 | 100 100 100 100 100 100 Level 1 . | . . . . . . Level 2 . | . . . . . . Level 3 . | . . . . . . Level 4 . | . . . . . . Level 5 . | . . . . . . High Security . | . . . . . . Max Security . | . . . . . . Peak Influence 150 | 5 92 148 65 150 104 Initial 55 | . . 17 47 2 55 Average 29 | 1 38 58 10 47 30 Influence Increases 1480 | 10 282 283 228 465 212 Destroy 0b10 Robot/C 960 | . 200 160 160 300 140 Destroy 0b10 Robot/NC 55 | 10 . 10 10 10 15 Destroy Leader 244 | . 50 52 30 90 22 Allied During Kill 5 | . . . . 5 . Successful Hack 40 | . 2 13 10 15 . Destroy Structure 41 | . . 3 3 . 35 Partial Spotted 15 | . . . . 15 . Lose Combat Pursuer 120 | . 30 45 15 30 . Influence Decreases 1480 | 10 240 203 342 351 334 Entered New Map 173 | . . 25 75 6 67 Time Decay 1088 | 10 230 178 230 295 145 Lost Part 219 | . 10 . 37 50 122 Squads Dispatched 7 | . 3 2 . 2 . Investigation 2 | . 1 . . 1 . Extermination . | . . . . . . Reinforcement 5 | . 2 2 . 1 . Assault . | . . . . . . Garrison . | . . . . . . Intercept . | . . . . . . Searches Triggered . | . . . . . . Construction Impeded . | . . . . . . Haulers Reinforced . | . . . . . . Active Scanning Responses . | . . . . . . Cargo Convoy Interrupts 1 | . . . . . 1 Stealth | -11 -10 -9 -9 -8 -7 --------- Run | Yrd Mat Mat Min Mat Fac Distress Signals 2 | . . 1 . . 1 Communications Jammed . | . . . . . . Distress Signals . | . . . . . . Times Spotted 81 | . 15 14 8 24 20 Peak Tracking Total 11 | . 4 4 3 6 11 Tactical Retreats 7 | . 2 2 1 2 . Traps | -11 -10 -9 -9 -8 -7 ------- Run | Yrd Mat Mat Min Mat Fac Traps Triggered 2 | . 1 . . 1 . Indirectly . | . . . . . . Trap Hack Attempts . | . . . . . . Triggered . | . . . . . . Disarmed . | . . . . . . Reprogrammed . | . . . . . . Reused . | . . . . . . Traps Extracted . | . . . . . . Installed . | . . . . . . Triggered . | . . . . . . Machines | -11 -10 -9 -9 -8 -7 ---------- Run | Yrd Mat Mat Min Mat Fac Machines Disabled . | . . . . . . Max in Single Turn . | . . . . . . Machines Repaired . | . . . . . . Machines Dismantled . | . . . . . . Machines Sabotaged . | . . . . . . Overloaded Fab Kills . | . . . . . . Hacking | -11 -10 -9 -9 -8 -7 --------- Run | Yrd Mat Mat Min Mat Fac Machines Accessed 15 | . 4 2 2 5 2 Terminals 11 | . 3 2 1 4 1 Fabricators . | . . . . . . Repair Stations 2 | . 1 . . . 1 Recycling Units . | . . . . . . Scanalyzers 1 | . . . . 1 . Garrison Access . | . . . . . . Total Hacks 43 | . 13 3 7 16 4 Successful 30 | . 9 3 6 9 3 Failed 12 | . 4 . 1 6 1 Catastrophic . | . . . . . . Database Lockouts 1 | . . . . 1 . Manual 5 | . 2 . 2 1 . Terminals 32 | . 11 3 6 10 2 Fabricators . | . . . . . . Repair Stations 4 | . 2 . . . 2 Recycling Units . | . . . . . . Scanalyzers 6 | . . . . 6 . Garrison Access . | . . . . . . Terminal Hacks 23 | . 7 3 6 6 1 Record 12 | . 3 . 5 4 . Open Door 1 | . . . 1 . . Emergency Access Points 2 | . . 1 . 1 . Alert Level 1 | . 1 . . . . Locate Traps 3 | . 1 1 . . 1 Hauler Manifests 1 | . . . . 1 . Zone Layout 2 | . 1 1 . . . Patrol Navigation 1 | . 1 . . . . Fabricator Hacks . | . . . . . . Repair Station Hacks 4 | . 2 . . . 2 Scan Component 2 | . 1 . . . 1 Repair 2 | . 1 . . . 1 Recycling Unit Hacks . | . . . . . . Scanalyzer 3 | . . . . 3 . Insert Component 1 | . . . . 1 . Analyze 1 | . . . . 1 . Retrieve Study 1 | . . . . 1 . Garrison Access Hacks . | . . . . . . Unauthorized Hacks . | . . . . . . Terminals . | . . . . . . Fabricators . | . . . . . . Repair Stations . | . . . . . . Recycling Units . | . . . . . . Scanalyzers . | . . . . . . Garrison Access . | . . . . . . Data Cores Recovered . | . . . . . . Used . | . . . . . . Hacking Detections 8 | . 3 . 1 3 1 Full Trace Events 1 | . . . . 1 . Feedback Events . | . . . . . . Feedback Blocked . | . . . . . . Robot Schematics Acquired . | . . . . . . Robots Built . | . . . . . . Authchips . | . . . . . . Time . | . . . . . . Total Robot Build Rating . | . . . . . . Part Schematics Acquired 1 | . . . . 1 . Parts Built . | . . . . . . Authchips . | . . . . . . Time . | . . . . . . Total Part Build Rating . | . . . . . . Part Studies Acquired . | . . . . . . Parts Repaired 2 | . 1 . . . 1 Time 70 | . 26 . . . 44 Parts Recycled . | . . . . . . Recycled Matter . | . . . . . . Retrieved Matter . | . . . . . . Retrieved Components . | . . . . . . Parts Scanalyzed 1 | . . . . 1 . Part Schematics Acquired 1 | . . . . 1 . Parts Damaged . | . . . . . . Bothacking | -11 -10 -9 -9 -8 -7 ------------ Run | Yrd Mat Mat Min Mat Fac Used RIF Installer . | . . . . . . Robots Hacked . | . . . . . . Non-combat . | . . . . . . Combat . | . . . . . . Robot Hacks Applied . | . . . . . . Relay Couplers Released . | . . . . . . Fabnet Peak Effective % . | . . . . . . Robots Rewired . | . . . . . . Allies Hacked . | . . . . . . Hacks Repelled . | . . . . . . Allies | -11 -10 -9 -9 -8 -7 -------- Run | Yrd Mat Mat Min Mat Fac Total Allies . | . . . . . . Largest Group . | . . . . . . Highest-Rated Group . | . . . . . . Highest-Rated Ally . | . . . . . . Total Orders . | . . . . . . Ally Attacks 6 | . . . . 6 . Total Damage 22 | . . . . 22 . Kills 1 | . . . . 1 . Allies Corrupted . | . . . . . . Allies Melted . | . . . . . . Intel | -11 -10 -9 -9 -8 -7 ------- Run | Yrd Mat Mat Min Mat Fac Active Infowar (turns) 2349 | 24 607 427 1241 50 . Terrain 2349 | 24 607 427 1241 50 . Robot Analysis Total . | . . . . . . Derelict Logs Recovered 1 | . . . 1 . . Drone Launches 6 | . . . . 6 . Drone Recoveries 4 | . . . . 4 . Exploration | -11 -10 -9 -9 -8 -7 ------------- Run | Yrd Mat Mat Min Mat Fac Turns Passed 3988 | 131 607 427 1431 803 589 Spaces Moved 2318 | 69 307 228 913 435 366 Core 18 | 8 . . . . 10 Treads . | . . . . . . Legs 2300 | 61 307 228 913 435 356 Wheels . | . . . . . . Hover . | . . . . . . Flight . | . . . . . . Fastest Speed 50 | 50 120 120 120 120 50 Average Speed 119 | 111 120 120 120 120 118 Slowest Speed 260 | 120 120 120 260 190 250 Overloaded Moves . | . . . . . . Propulsion Burnouts . | . . . . . . Robots Hopped . | . . . . . . Potential Cave-ins . | . . . . . . Cave-ins Triggered . | . . . . . . Exploration Rate (%) 38 | 3 58 22 97 38 11 Regions Visited 5 Branch Regions 1 Pre-discovered Areas . | . . . . . . Known Exits Taken 1 | . . . . 1 . Unknown Exits Taken 4 | 1 1 1 1 . . Scrap Searched 2 | . . . 2 . . Spaces Dug . | . . . . . . Terrain Destroyed 42 | . . 2 4 . 36 Melee . | . . . . . . Projectile 6 | . . 2 4 . . AOE 36 | . . . . . 36 Terrain Rammed . | . . . . . . Walls Destroyed . | . . . . . . Machines Disabled . | . . . . . . Actions | -11 -10 -9 -9 -8 -7 --------- Run | Yrd Mat Mat Min Mat Fac Total 3248 | 103 480 346 1186 633 500 Wait 635 | 8 120 75 220 119 93 Move 2313 | 68 306 227 912 434 366 Hop . | . . . . . . Pick Up 37 | 5 5 7 6 10 4 Fast Attach 28 | 6 3 3 2 6 8 Attach 29 | 4 2 3 8 8 4 Detach 19 | 3 3 2 2 6 3 Swap 2 | . . 1 1 . . Drop 27 | . 2 8 3 7 7 Fire 158 | 9 39 20 32 43 15 Melee . | . . . . . . Ram . | . . . . . . Kick . | . . . . . . Crush . | . . . . . . Escape Stasis . | . . . . . . Rewire . | . . . . . . Trap . | . . . . . . Miscellaneous . | . . . . . . Route ------- -11/Scrapyard -10/Materials (discovered 4 exits: *Mat x2 / [*Min] / [*Sub]) -9/Materials -9/Mines (discovered 2 exits: *Mat x2) -8/Materials (discovered 2 exits: *Fac x2) -7/Factory History --------- Turn | Location | Event 8 | -11/Scrapyard | Discovered new exit (range 16) 132 | -11/Scrapyard | Entered Materials 307 | -10/Materials | Discovered new exit (range 11) 311 | -10/Materials | Build established: Mutant 376 | -10/Materials | Discovered new exit (range 12) 489 | -10/Materials | Discovered new exit (range 5) 599 | -10/Materials | Repaired Aluminum Leg 620 | -10/Materials | Discovered new exit (range 16) 632 | -10/Materials | Derelicts attacked the area 739 | -10/Materials | Entered another Materials area 739 | -9/Materials | Evolved 2 slots: Propulsion x1, Utility x1 1000 | -9/Materials | Discovered new exit (range 11) 1166 | -9/Materials | Entered Mines 1173 | -9/Mines | Received a Rocket Launcher from a helpful Derelict 1294 | -9/Mines | Discovered new exit (range 8) 1559 | -9/Mines | Discovered new exit (range 13) 1918 | -9/Mines | Found a damaged Exp. Sensor Array with a note attached 1927 | -9/Mines | Learned location of 2 exits from Materials 1936 | -9/Mines | Found Prototype Device 2238 | -9/Mines | Found the Drone Emporium 2243 | -9/Mines | Found Prototype Device 2407 | -9/Mines | Lost 3 parts (1p2n) 2597 | -9/Mines | Entered Materials 2597 | -8/Materials | Evolved 2 slots: Propulsion x1, Utility x1 2598 | -8/Materials | Identified exit to Factory 2645 | -8/Materials | Identified Splice Drone Bay 2704 | -8/Materials | Build established: Scavenger-Mutant 2917 | -8/Materials | Central database locked down 3280 | -8/Materials | System corruption reached 10% 3338 | -8/Materials | Lost 4 parts (1n2u1w) 3400 | -8/Materials | Entered Factory 3400 | -7/Factory | Evolved 2 slots: Utility x1, Weapon x1 3610 | -7/Factory | Repaired Flak Gun 3916 | -7/Factory | Build established: Scavenger-Gunner 3953 | -7/Factory | Cargo convoy interrupted 3969 | -7/Factory | System corruption reached 10% 3977 | -7/Factory | Core integrity fell below 50% 3983 | -7/Factory | Core integrity fell below 20% 3985 | -7/Factory | Released all parts (2) 3989 | -7/Factory | Destroyed by H-55 Commando with Gauss Rifle Last Messages --------------- 03972_ Penetrated by Slug. 03972_ K-01 Serf collects debris. 03973_ Penetrated by Slug. 03975_ K-01 Serf collects debris. 03977_ Flak Gun destroyed. 03978_ The unstable cave ceiling collapses. 03978_ Lgt. Nuclear Core crushed. 03978_ Enh. Nuclear Core destroyed. 03980_ K-01 Serf collects debris. 03981_ Penetrated by Slug. 03981_ Acquired Gauss Rifle. 03982_ Med. Storage Unit destroyed. 03983_ Slug penetrates P-60 Hacker. 03983_ K-01 Serf collects debris. 03984_ 2JDKAP9<4OD,9=4C607>/QDJVZ==KN2 T 03984_ Penetrated by Slug. 03985_ Gauss Rifle destroyed. 03985_ Released Med. Matter Pod. 03985_ Released Com. Battery. 03988_ K-01 Serf collects debris. Map ----- +----------------------------------------------------+ | ??????????????????????????????#######????????????? | | ???????????????????????######## #????????????? | | ???????????????????#+#?# # """ #????????????? | | ???????????????????# #?# """# """ #????????????? | | ???????????????????# #?# """# """ #????????????? | | ???????????????????# #?# """# #????????????? | | ????????????######## #?# # #????????????? | | ????????????# # #?# # ########+####+ | | ????????????# # #####+#####+##### | | ????????????# " + / """ """ | | ????????????# T # #### # """ """ | | ????????????# " # #??# # """ """ | | ????????????# = # #??# # "" | | ????????????######## #??# # "" | | ???????????????????# #??# + | | ??????????????######+#### # | | ??????????????# ## # | | ??????????????# ## # ## | | ??????????????# """""" ##^^^^^ # | | ##########????# """""" ## ]* # | | #???# """""" ## % ############ | | #???# """""" ## % #?# | | #???# ## #%h* #?# | | #???# ## x!= k# #?# | | #???# ## p!p #?# | | #########/#####@ = #########+### | | # # #?? | | # #= # #?? | | # # # ### | | + # + | | # #################### | | # ###+##### #??????????????????? | | ########### # ## #??????????????????? | | # # """ ## a ????????????????? | | """"""" # # """ ## ???????????????? | | """"""" !# # """ ## ???????????????? | | """"""" # # ## ????????????????? | | """"""" # # """ ## ???????????????? | | # # """ #?#######k????????????????? | | #####+##### # """ #?????????????????????????? | | # #?????????????????????????? | | # #?????????????????????????? | | ^ # " " #?????????????????????????? | | # "R" #?????????????????????????? | | ^ # """ #?????????????????????????? | | #####+##################?????????????????????????? | | #?????????????????????????????????????? | | """ #?????????????????????????????????????? | | """"" #?????????????????????????????????????? | | """"" #?????????????????????????????????????? | +----------------------------------------------------+ Best States ------------- Heat Dissipation 50 Energy Generation 17 Energy Capacity 500 Matter Stores 300 Matter Capacity 400 Sight Range 16 Terrain Scan Range 16 Terrain Scan Density 10 Additional Mass Support 9 Armor Coverage 150 Evasion (%) 55 Recoil Reduction 4 Item Schematics ----------------- Flak Gun | -8/Materials | Scanalyzed Robot Schematics ------------------ None Fabricated ------------ Nothing Repaired ---------- Aluminum Leg | 31% | -10/Materials Flak Gun | 41% | -7/Factory Studied --------- None Alien Tech Used ----------------- None Achievements -------------- Jackpot Maybe Next Time I'll Detach My Launcher More Dakka Please Release The Drones! Satisfying Challenges ------------ None Game ------ Seed MediumCorruptionNeutralizer Manual? 0 Play Time 01:25:26 Cumulative 20.0 hours Start 2026.02.09 @ 20:47:13 End 2026.02.09 @ 22:22:21 Sessions 1 Manual Loads 0 Difficulty Rogue Special Mode None Game No. 17 Rogue 17 Adventurer 0 Explorer 0 Win Type - Total 0 Types 0/0/0/0/0/0/0/0/0/0 Lore% 11 Gallery% 17 Achievement% 13 Wizard Run 0 Options --------- Layout 1 ASCII 0 Keyboard 1 Movement Numpad Keybinds 0 Fullscreen 1 Font 24/Smallcaps Map View 50x35 Zoom Use 0% Tactical HUD 1 Map Filters NONE Filters NONE Steam 1 RUN: f1e3ed8b-a717-4076-b5ec-fd5761db8427